bitfinex/quotes_SOLUSD_20250307
["timestamp","ask_amount","ask_price","bid_price","bid_amount"]
[1741372734774,8.4829,146.97,146.91,45.65480259]
[1741372734988,6.4417,146.97,146.91,45.65480259]
[1741372735190,2.0711,146.98,146.92,45.65480259]
[1741372735494,2.0711,146.98,146.91,45.65480259]
[1741372735717,0.03,146.98,146.93,45.65480259]
[1741372735890,0.03,146.98,146.94,45.65480259]
[1741372736075,2.0712,146.98,146.92,53.23480259]
[1741372736277,2.0712,146.98,146.92,7.58]
[1741372736785,0.03,146.98,146.93,45.65480259]
[1741372736991,0.03,146.98,146.92,53.23480259]
[1741372737309,0.03,146.98,146.92,7.58]
[1741372737816,0.03,146.98,146.93,45.65480259]
[1741372737988,0.03,146.98,146.92,8.60048485]
[1741372738184,0.03,146.98,146.92,53.23480259]
[1741372738405,0.03,146.98,146.88,7.613]
[1741372738606,0.03,146.98,146.89,45.65480259]
[1741372738814,0.03,146.98,146.88,7.613]
[1741372739110,0.03,146.98,146.89,45.65480259]
[1741372739313,0.03,146.98,146.88,7.613]
[1741372739515,0.03,146.98,146.89,45.65480259]
[1741372739707,0.03,146.98,146.9,45.65480259]
[1741372739914,0.03,146.98,146.91,45.65480259]
[1741372740111,0.03,146.98,146.93,45.65480259]
[1741372740415,0.03,146.98,146.92,45.65480259]
[1741372740801,0.03,146.98,146.88,7.613]
[1741372740989,0.03,146.98,146.89,45.65480259]
[1741372741190,0.03,146.98,146.88,53.26780259]
[1741372741495,0.03,146.98,146.9,45.65480259]
[1741372741825,0.03,146.98,146.91,0.033]
[1741372743227,0.03,146.98,146.91,45.68780259]
[1741372743510,0.03,146.98,146.93,45.65480259]
[1741372743693,0.03,146.98,146.97,45.65480259]
[1741372744513,0.03,146.98,146.97,52.45890259]
[1741372744722,0.0001,146.98,146.97,104.48000529]
[1741372744926,0.0001,146.98,146.97,58.8252027]
[1741372745425,2.0394,147.11,146.97,121.49020529]
[1741372745605,2.0394,147.11,147.04,45.65480259]
[1741372745808,2.0394,147.11,147.04,42.15480259]
[1741372746311,2.0394,147.11,147.05,45.65480259]
[1741372746496,6.6532,147.13,147.06,45.65480259]
[1741372746497,3.5947,147.13,147.06,45.65480259]
[1741372746711,3.5947,147.13,147.05,45.65480259]
[1741372746902,3.5947,147.13,147.08,45.65480259]
[1741372747123,3.5947,147.13,147.03,7.58]
[1741372747433,8.6922,147.13,147.03,53.23480259]
[1741372747621,8.6922,147.13,147.03,7.58]
[1741372747824,8.6922,147.13,147.03,45.65480259]
[1741372748033,8.6922,147.13,146.97,22.35631147]
[1741372748034,26.4672,147.13,146.97,7.58]
[1741372748202,6.3767,147.12,146.97,7.58]
[1741372748721,7.1374,147.11,146.97,7.58]
[1741372749029,17.3338,147.11,146.97,7.58]
[1741372749340,83.1319,147.1,146.91,0.033]
[1741372749526,6.3105,147.09,146.91,0.033]
[1741372750100,6.05,147.07,146.91,0.033]
[1741372750299,7.58,147.06,146.91,0.033]
[1741372751034,17.341,147.05,146.91,0.033]
[1741372751196,27.5416,147.05,146.91,0.033]
[1741372751400,8.2431,147.04,146.91,0.033]
[1741372752133,1.5432,147.03,146.88,0.033]
[1741372752321,1.5432,147.01,146.88,0.033]
[1741372752505,6.2451,146.99,146.88,0.0001]
[1741372752707,7.1437,146.98,146.88,0.0001]
[1741372753130,17.3491,146.98,146.88,0.0001]
[1741372753828,7.1437,146.98,146.88,45.65490259]
[1741372754215,7.1437,146.98,146.88,0.0001]
[1741372754600,7.1437,146.98,146.89,45.65480259]
[1741372754799,1.5432,147.01,146.94,45.65480259]
[1741372755001,2.0403,147.03,146.95,45.65480259]
[1741372755308,2.0403,147.03,146.89,53.23480259]
[1741372755309,7.1412,147.03,146.89,53.23480259]
[1741372755734,17.3431,147.03,146.89,53.23480259]
[1741372756124,17.3431,147.03,146.9,45.65480259]
[1741372756329,7.1412,147.03,146.91,45.65480259]
[1741372756529,7.1412,147.03,146.88,0.0001]
[1741372756715,17.3431,147.03,146.88,0.0001]
[1741372757135,1.5025,147.02,146.88,0.0001]
[1741372757850,1.5025,147.02,146.88,357.65490259]
[1741372758012,1.5025,147.02,146.88,45.65490259]
[1741372758830,7.1422,147.01,146.89,45.65480259]
[1741372759030,7.1422,147.01,146.88,0.0001]
[1741372759031,17.3455,147.01,146.88,0.0001]
[1741372759233,17.3455,147.01,146.89,45.65480259]
[1741372759580,2.0406,147.01,146.94,45.65480259]
[1741372759852,2.0405,147.02,146.96,45.65480259]
[1741372760332,2.0404,147.03,146.98,45.65480259]
[1741372760533,2.0404,147.03,146.97,45.65480259]
[1741372760952,0.03,147.04,146.99,45.65480259]
[1741372761152,0.03,147.04,147.02,45.65480259]
[1741372761534,0.03,147.04,146.98,1.02008299]
[1741372761730,0.03,147.04,147.0,45.65480259]
[1741372761937,2.0702,147.04,147.0,45.65480259]
[1741372762256,7.1708,147.04,146.9,1.02013934]
[1741372762429,7.1708,147.04,146.93,45.65480259]
[1741372762629,7.1708,147.04,146.94,45.65480259]
[1741372762941,5.1306,147.04,146.93,45.65480259]
[1741372763382,1.6134,147.03,146.92,53.23480259]
[1741372763673,1.6134,147.03,146.92,7.58]
[1741372763855,6.5735,147.02,146.88,0.0001]
[1741372764048,7.58,147.01,146.9,45.65480259]
[1741372764356,7.58,147.01,146.89,45.65480259]
[1741372764564,7.58,147.01,146.88,357.65490259]
[1741372764749,7.58,147.01,146.88,0.0001]
[1741372764948,17.3468,147.0,146.88,0.0001]
[1741372765558,17.3468,147.0,146.9,45.65480259]
[1741372766163,27.5508,147.0,146.88,0.0001]
[1741372766682,81.5,146.99,146.88,0.0001]
[1741372766882,17.3491,146.98,146.88,0.0001]
[1741372767245,27.5545,146.98,146.88,0.0001]
[1741372767765,2.041,146.98,146.91,45.65480259]
[1741372767983,2.041,146.98,146.94,45.65480259]
[1741372768149,2.0406,147.01,146.95,45.65480259]
[1741372768345,8.614,147.02,146.96,45.65480259]
[1741372768873,8.614,147.02,146.95,45.65480259]
[1741372769047,8.614,147.02,146.96,45.65480259]
[1741372769873,13.7153,147.02,146.93,7.58]
[1741372770076,13.7153,147.02,146.93,53.23480259]
[1741372770456,8.614,147.02,146.95,45.65480259]
[1741372770781,2.0704,147.03,146.98,45.65480259]
[1741372770995,0.03,147.03,147.0,45.65480259]
[1741372772489,0.03,147.03,146.98,7.58]
[1741372772701,0.03,147.03,146.99,45.65480259]
[1741372772908,0.03,147.03,146.98,7.58]
[1741372773111,0.03,147.03,146.92,7.58]
[1741372774477,0.03,147.03,146.89,192.99480259]
[1741372774682,0.03,147.03,146.88,0.0001]
[1741372774683,6.1742,147.01,146.88,0.0001]
[1741372775006,7.1428,147.0,146.88,0.0001]
[1741372775562,7.58,146.99,146.88,0.0001]
[1741372777286,7.1437,146.98,146.88,0.0001]
[1741372777467,7.1437,146.98,146.89,45.65480259]
[1741372777865,7.1437,146.98,146.88,45.65490259]
[1741372778503,7.1437,146.98,146.89,45.65480259]
[1741372779106,7.1437,146.98,146.88,45.65490259]
[1741372779284,7.1437,146.98,146.89,45.65480259]
[1741372779687,7.1437,146.98,146.88,45.65490259]
[1741372779894,7.1437,146.98,146.89,45.65480259]
[1741372780204,1.5597,147.02,146.89,45.65480259]
[1741372780205,0.03,147.03,146.97,45.65480259]
[1741372780504,0.03,147.03,147.02,45.65480259]
[1741372781065,0.03,147.03,147.02,46.67453826]
[1741372781285,0.03,147.03,147.02,53.47623826]
[1741372784075,0.03,147.03,147.02,373.05623826]
[1741372784396,0.03,147.03,147.02,357.65480259]
[1741372784605,0.03,147.03,147.02,365.23480259]
[1741372785199,0.03,147.03,147.02,372.03650259]
[1741372786696,0.03,147.03,147.02,365.23480259]
[1741372787133,0.03,147.03,147.02,372.03650259]
[1741372787596,0.03,147.03,147.02,365.23480259]
[1741372788317,0.03,147.03,147.02,45.65480259]
[1741372788536,0.03,147.03,147.02,53.23480259]
[1741372788827,0.03,147.03,147.02,60.03650259]
[1741372791224,0.03,147.03,146.98,82.0]
[1741372791534,0.03,147.03,146.99,53.21480259]
[1741372791692,0.03,147.03,147.0,45.65480259]
[1741372791899,0.03,147.03,147.02,45.65480259]
[1741372792317,0.03,147.03,147.01,45.65480259]
[1741372792630,0.03,147.03,147.02,45.65480259]
[1741372794311,0.03,147.03,147.02,45.68780259]
[1741372794520,0.03,147.03,147.02,0.033]
[1741372795421,0.03,147.03,147.02,45.68780259]
[1741372796341,0.03,147.03,147.02,0.033]
[1741372799038,0.03,147.03,146.96,53.21480259]
[1741372799240,0.03,147.03,146.97,45.65480259]
[1741372799757,0.03,147.03,146.96,53.21480259]
[1741372800218,0.03,147.03,146.97,45.65480259]
[1741372800720,0.03,147.03,146.93,45.65480259]
[1741372801047,0.03,147.03,146.96,45.65480259]
[1741372801240,0.03,147.03,146.98,45.59029269]
[1741372801410,0.03,147.03,146.99,45.59029269]
[1741372801635,0.03,147.03,146.94,6.8054]
[1741372801636,0.03,147.03,147.02,45.59029269]
[1741372802010,0.03,147.03,147.02,46.61010153]
[1741372802216,0.03,147.04,147.02,45.59029269]
[1741372802429,6.3022,147.16,147.03,92.2000719]
[1741372802638,49.27149269,147.18,147.11,45.59029269]
[1741372802815,45.59029269,147.17,147.11,45.59029269]
[1741372803130,45.59029269,147.2,147.13,45.59029269]
[1741372803333,47.62819269,147.21,147.14,45.59029269]
[1741372803539,45.59029269,147.21,147.15,45.59029269]
[1741372803738,1.6428,147.24,147.18,45.59029269]
[1741372803935,45.59029269,147.26,147.2,45.59029269]
[1741372804118,51.89249269,147.28,147.21,45.59029269]
[1741372804441,6.3022,147.28,147.21,45.59029269]
[1741372804617,6.3022,147.28,147.22,45.59029269]
[1741372804825,45.59029269,147.29,147.22,45.59029269]
[1741372805013,45.59029269,147.24,147.18,45.59029269]
[1741372805615,45.59029269,147.24,147.15,7.56]
[1741372805616,45.59029269,147.2,147.11,154.8]
[1741372805820,7.1296,147.27,147.11,154.8]
[1741372806107,7.1296,147.27,147.14,45.59029269]
[1741372806407,45.59029269,147.21,147.15,45.59029269]
[1741372806612,45.59029269,147.24,147.18,45.59029269]
[1741372807241,2.037,147.27,147.19,45.59029269]
[1741372807450,2.037,147.27,147.12,1.0191008]
[1741372807451,45.59029269,147.22,147.16,45.59029269]
[1741372807609,45.59029269,147.21,147.15,45.59029269]
[1741372807830,45.59029269,147.22,147.16,45.59029269]
[1741372808215,45.59029269,147.23,147.17,45.59029269]
[1741372808538,45.59029269,147.24,147.18,45.59029269]
[1741372808920,45.59029269,147.23,147.17,45.59029269]
[1741372809123,45.59029269,147.22,147.16,45.59029269]
[1741372809335,45.59029269,147.17,147.11,192.83029269]
[1741372809739,45.59029269,147.15,147.11,147.24]
[1741372809930,45.59029269,147.16,147.11,147.24]
[1741372810543,45.59029269,147.15,147.11,147.24]
[1741372810728,45.59029269,147.15,147.09,45.59029269]
[1741372811122,45.59029269,147.16,147.1,45.59029269]
[1741372811521,2.0387,147.15,147.1,45.59029269]
[1741372811737,47.62899269,147.15,147.09,45.59029269]
[1741372812248,47.62889269,147.16,147.1,45.59029269]
[1741372812741,45.59029269,147.17,147.11,45.59029269]
[1741372812957,47.62869269,147.17,147.11,45.59029269]
[1741372813541,47.62869269,147.17,147.08,7.56]
[1741372813542,45.59029269,147.13,147.08,7.56]
[1741372813759,45.59029269,147.11,147.03,147.16]
[1741372813922,1.5216,147.18,147.03,147.16]
[1741372813923,1.5216,147.18,147.09,45.59029269]
[1741372814141,1.5216,147.18,147.1,45.59029269]
[1741372814325,45.59029269,147.17,147.11,45.59029269]
[1741372814728,45.59029269,147.16,147.1,45.59029269]
[1741372815043,45.59029269,147.18,147.12,45.59029269]
[1741372815233,45.59029269,147.17,147.11,45.59029269]
[1741372815546,45.59029269,147.15,147.09,7.56]
[1741372815755,7.1335,147.19,147.1,45.59029269]
[1741372815919,45.59029269,147.16,147.1,45.59029269]
[1741372816526,45.59029269,147.16,147.09,45.59029269]
[1741372816929,45.59029269,147.15,147.09,45.59029269]
[1741372817233,17.3244,147.19,147.09,45.59029269]
[1741372817234,45.59029269,147.16,147.09,45.59029269]
[1741372817426,45.59029269,147.16,147.1,45.59029269]
[1741372817745,45.59029269,147.15,147.09,45.59029269]
[1741372817924,45.59029269,147.15,147.08,45.59029269]
[1741372818121,45.59029269,147.11,147.03,147.16]
[1741372818429,27.5153,147.19,147.03,154.72]
[1741372818430,45.59029269,147.12,147.03,154.72]
[1741372818631,45.59029269,147.15,147.09,45.59029269]
[1741372818840,45.59029269,147.17,147.11,45.59029269]
[1741372819136,45.59029269,147.16,147.1,45.59029269]
[1741372819345,0.03,147.16,147.11,45.59029269]
[1741372819546,52.75519269,147.16,147.1,45.59029269]
[1741372819845,45.59029269,147.13,147.06,45.59029269]
[1741372820042,45.59029269,147.11,147.04,7.56]
[1741372820258,7.1649,147.16,147.09,45.59029269]
[1741372820423,52.75519269,147.16,147.09,45.59029269]
[1741372820621,52.75519269,147.16,147.06,312.0]
[1741372820622,7.1649,147.16,147.06,312.0]
[1741372820839,45.59029269,147.15,147.09,45.59029269]
[1741372821064,45.59029269,147.12,147.06,357.59029269]
[1741372821347,45.59029269,147.11,147.05,45.59029269]
[1741372821728,7.1379,147.1,147.05,45.59029269]
[1741372822531,45.59029269,147.11,147.03,147.16]
[1741372822532,2.0391,147.12,147.09,45.59029269]
[1741372822735,2.0387,147.15,147.11,45.59029269]
[1741372822937,2.0387,147.15,147.12,45.59029269]
[1741372823859,0.03,147.16,147.14,45.59029269]
[1741372824030,0.03,147.16,147.15,45.59029269]
[1741372824231,0.03,147.16,147.14,357.59029269]
[1741372824438,45.62029269,147.16,147.09,7.56]
[1741372824646,45.62029269,147.16,147.1,45.59029269]
[1741372824839,45.59029269,147.15,147.09,53.15029269]
[1741372825025,45.59029269,147.14,147.09,7.56]
[1741372825429,45.59029269,147.15,147.09,53.15029269]
[1741372825740,52.72619269,147.14,147.09,7.56]
[1741372825929,2.0388,147.14,147.1,45.59029269]
[1741372826251,0.03,147.16,147.13,45.59029269]
[1741372826456,0.03,147.16,147.14,45.59029269]
[1741372826628,0.03,147.16,147.09,14.3584]
[1741372826629,0.03,147.16,147.13,45.59029269]
[1741372826832,47.65889269,147.16,147.1,45.59029269]
[1741372827034,2.0686,147.16,147.1,45.59029269]
[1741372827234,7.165,147.16,147.1,45.59029269]
[1741372827437,2.0686,147.16,147.1,45.59029269]
[1741372827735,2.0686,147.16,147.12,45.59029269]
[1741372828164,45.59029269,147.15,147.09,365.15029269]
[1741372828369,45.59029269,147.15,147.09,53.15029269]
[1741372829156,45.59029269,147.11,147.05,45.59029269]
[1741372829324,6.5655,147.15,147.07,45.59029269]
[1741372829529,45.59029269,147.13,147.07,45.59029269]
[1741372829730,45.59029269,147.14,147.08,45.59029269]
[1741372830029,45.59029269,147.13,147.07,45.59029269]
[1741372831861,47.62929269,147.13,147.07,45.59029269]
[1741372832061,2.0389,147.14,147.08,45.59029269]
[1741372832239,2.0389,147.14,147.09,45.59029269]
[1741372832444,0.03,147.16,147.12,45.59029269]
[1741372833160,47.65889269,147.16,147.1,45.59029269]
[1741372833359,45.59029269,147.15,147.09,45.59029269]
[1741372833742,47.65889269,147.16,147.1,45.59029269]
[1741372833970,2.0686,147.16,147.12,45.59029269]
[1741372834341,0.03,147.16,147.12,45.59029269]
[1741372834547,0.03,147.16,147.14,45.59029269]
[1741372834958,0.03,147.16,147.14,357.59029269]
[1741372835150,0.03,147.16,147.13,45.59029269]
[1741372835742,2.0686,147.16,147.11,45.59029269]
[1741372836067,2.0686,147.16,147.09,14.3584]
[1741372836068,0.03,147.16,147.09,14.3584]
[1741372836241,45.62029269,147.16,147.09,7.56]
[1741372836444,45.59029269,147.13,147.05,7.56]
[1741372836751,45.59029269,147.09,147.02,0.033]
[1741372836943,45.59029269,147.09,147.03,45.62329269]
[1741372837138,45.59029269,147.1,147.04,45.59029269]
[1741372837955,2.0395,147.09,147.04,45.59029269]
[1741372838960,2.0388,147.14,147.08,45.59029269]
[1741372839274,2.0388,147.14,147.05,1.0195198]
[1741372839642,2.0388,147.14,147.04,15.38027686]
[1741372839982,7.1341,147.18,147.04,7.56]
[1741372840168,7.1341,147.18,147.04,14.3607]
[1741372840750,45.59029269,147.14,147.08,45.59029269]
[1741372841145,7.1341,147.18,147.1,45.59029269]
[1741372841361,45.62029269,147.16,147.1,45.59029269]
[1741372841873,45.62029269,147.16,147.05,1.01956986]
[1741372841874,47.62899269,147.15,147.09,45.59029269]
[1741372842081,2.0387,147.15,147.1,45.59029269]
[1741372842373,45.62029269,147.16,147.13,45.59029269]
[1741372842374,0.03,147.16,147.13,45.59029269]
[1741372842578,0.03,147.16,147.15,45.59029269]
[1741372843462,0.03,147.16,147.1,7.56]
[1741372843663,45.59029269,147.14,147.06,6.7997]
[1741372843972,45.59029269,147.13,147.07,45.59029269]
[1741372844177,45.59029269,147.15,147.09,45.59029269]
[1741372844373,0.03,147.16,147.12,45.59029269]
[1741372844545,0.03,147.16,147.1,7.56]
[1741372844740,0.03,147.16,147.13,45.59029269]
[1741372844978,0.03,147.16,147.14,45.59029269]
[1741372845264,0.03,147.16,147.15,45.59029269]
[1741372845770,0.03,147.16,147.15,52.38599269]
[1741372846207,0.03,147.16,147.15,45.59029269]
[1741372847582,0.03,147.16,147.1,53.15029269]
[1741372847783,0.03,147.16,147.11,45.59029269]
[1741372847980,45.59029269,147.14,147.05,14.3604]
[1741372848283,0.03,147.16,147.09,45.59029269]
[1741372848476,45.59029269,147.15,147.09,45.59029269]
[1741372848678,0.03,147.16,147.07,45.59029269]
[1741372848870,45.59029269,147.13,147.07,45.59029269]
[1741372849192,45.59029269,147.12,147.05,357.59029269]
[1741372849380,45.59029269,147.11,147.05,45.59029269]
[1741372850077,47.62929269,147.13,147.06,45.59029269]
[1741372850278,47.62929269,147.13,147.07,45.59029269]
[1741372851184,8.3023,147.14,147.08,45.59029269]
[1741372851366,53.89259269,147.14,147.08,45.59029269]
[1741372851961,8.3023,147.14,147.06,45.59029269]
[1741372852187,8.3023,147.14,147.03,1.05272105]
[1741372852188,45.59029269,147.12,147.05,45.59029269]
[1741372853081,45.59029269,147.1,147.04,45.59029269]
[1741372853871,45.59029269,147.07,147.03,0.033]
[1741372854164,2.0399,147.07,147.03,0.033]
[1741372854380,45.59029269,147.09,147.03,0.033]
[1741372854582,47.62969269,147.1,147.04,45.59029269]
[1741372854769,47.18899269,147.13,147.07,45.59029269]
[1741372855089,49.22809269,147.13,147.07,45.59029269]
[1741372855261,51.85369269,147.14,147.08,45.59029269]
[1741372855480,0.03,147.16,147.11,45.59029269]
[1741372855694,0.03,147.16,147.07,45.59029269]
[1741372855695,0.03,147.16,147.14,45.59029269]
[1741372856187,0.03,147.16,147.13,45.59029269]
[1741372856390,0.03,147.16,147.12,53.15029269]
[1741372856776,0.03,147.16,147.12,371.94729269]
[1741372857195,0.03,147.16,147.12,59.94729269]
[1741372857383,0.03,147.16,147.12,53.15029269]
[1741372857576,0.03,147.16,147.13,45.59029269]
[1741372857776,0.03,147.16,147.14,45.59029269]
[1741372858191,45.62029269,147.16,147.09,6.7984]
[1741372858373,45.62029269,147.16,147.09,52.38869269]
[1741372858588,45.62029269,147.16,147.1,45.59029269]
[1741372858768,0.03,147.16,147.1,45.59029269]
[1741372858976,45.62029269,147.16,147.1,45.59029269]
[1741372859170,45.62029269,147.16,147.09,45.59029269]
[1741372859477,0.03,147.16,147.1,45.59029269]
[1741372859683,0.03,147.16,147.11,45.59029269]
[1741372860086,0.03,147.16,147.11,357.59029269]
[1741372860290,0.03,147.16,147.12,45.59029269]
[1741372860590,45.62029269,147.16,147.1,45.59029269]
[1741372860891,45.59029269,147.14,147.08,7.56]
[1741372861092,45.59029269,147.11,147.05,45.59029269]
[1741372861291,45.59029269,147.1,147.04,55.84129941]
[1741372861494,45.59029269,147.09,147.03,55.87429941]
[1741372862085,45.59029269,147.08,147.03,10.28400672]
[1741372862389,45.59029269,147.11,147.05,45.59029269]
[1741372862602,45.59029269,147.09,147.03,55.87429941]
[1741372863287,45.59029269,147.08,147.03,10.28400672]
[1741372863502,7.1369,147.12,147.03,10.28400672]
[1741372863503,45.59029269,147.07,147.03,10.28400672]
[1741372863993,45.59029269,147.07,147.03,0.033]
[1741372864183,45.59029269,147.08,147.03,0.033]
[1741372864379,45.59029269,147.09,147.03,45.62329269]
[1741372864580,47.62989269,147.09,147.03,45.62329269]
[1741372866007,2.0393,147.11,147.06,45.59029269]
[1741372866167,47.62939269,147.12,147.06,45.59029269]
[1741372866375,47.62939269,147.12,147.07,45.59029269]
[1741372866376,2.0391,147.12,147.07,45.59029269]
[1741372866707,2.0389,147.14,147.09,45.59029269]
[1741372866867,2.0387,147.15,147.1,45.59029269]
[1741372867071,2.0686,147.16,147.11,45.59029269]
[1741372867284,47.65889269,147.16,147.1,45.59029269]
[1741372867488,45.59029269,147.14,147.08,45.59029269]
[1741372867687,45.59029269,147.12,147.04,7.56]
[1741372867996,45.59029269,147.11,147.04,7.56]
[1741372868173,45.59029269,147.11,147.05,45.59029269]
[1741372868375,2.039,147.13,147.06,45.59029269]
[1741372868595,45.59029269,147.11,147.05,45.59029269]
[1741372868899,45.59029269,147.07,147.03,0.033]
[1741372869094,45.59029269,147.08,147.03,0.033]
[1741372869284,45.59029269,147.09,147.03,0.033]
[1741372869481,45.59029269,147.1,147.04,45.59029269]
[1741372869690,45.59029269,147.11,147.05,45.59029269]
[1741372869898,45.59029269,147.08,147.03,0.033]
[1741372870097,45.59029269,147.05,147.03,0.033]
[1741372870304,2.0402,147.04,147.03,0.033]
[1741372870504,45.59029269,147.05,147.03,0.033]
[1741372870505,47.63039269,147.05,147.03,0.033]
[1741372870797,45.59029269,147.04,147.03,0.033]
[1741372872297,47.63039269,147.05,147.03,0.033]
[1741372872500,45.59029269,147.04,147.03,0.033]
[1741372872881,45.59029269,147.04,147.03,0.0001]
[1741372873121,45.59029269,147.04,146.93,0.033]
[1741372873273,45.59029269,146.97,146.93,0.033]
[1741372874283,45.59029269,146.98,146.93,0.033]
[1741372874483,45.59029269,147.0,146.93,45.62329269]
[1741372874684,45.59029269,147.01,146.95,45.59029269]
[1741372875378,45.59029269,147.02,146.93,0.033]
[1741372875584,45.59029269,147.01,146.95,45.59029269]
[1741372875785,55.19069269,147.03,146.96,45.59029269]
[1741372875984,45.59029269,147.04,146.98,45.59029269]
[1741372876227,45.59029269,147.06,147.0,45.59029269]
[1741372876403,45.59029269,147.03,146.96,45.59029269]
[1741372876704,45.59029269,147.0,146.94,7.56]
[1741372876878,7.1398,147.06,146.94,7.56]
[1741372876879,45.59029269,147.01,146.94,7.56]
[1741372877079,45.59029269,147.01,146.95,45.59029269]
[1741372877313,45.59029269,147.04,146.98,45.59029269]
[1741372877504,45.59029269,147.05,146.98,45.59029269]
[1741372877801,47.63019269,147.06,146.99,45.59029269]
[1741372878178,54.28909269,147.07,147.0,45.59029269]
[1741372878378,47.63009269,147.07,147.01,45.59029269]
[1741372878599,45.59029269,147.06,147.0,53.15029269]
[1741372878774,45.59029269,147.04,146.98,45.59029269]
[1741372878981,6.2666,147.11,147.03,45.59029269]
[1741372879193,6.2666,147.11,147.05,45.59029269]
[1741372879390,51.85689269,147.11,147.04,45.59029269]
[1741372879600,13.4041,147.11,146.99,6.2009]
[1741372879804,45.59029269,147.07,147.01,53.15029269]
[1741372880106,45.59029269,147.08,147.02,45.59029269]
[1741372880403,2.0399,147.06,147.01,53.15029269]
[1741372880591,45.59029269,147.09,147.02,45.59029269]
[1741372880787,45.59029269,147.09,147.03,45.59029269]
[1741372880981,45.59029269,147.09,147.01,14.3622]
[1741372880982,45.59029269,147.11,147.05,45.59029269]
[1741372881190,47.62959269,147.11,147.05,45.59029269]
[1741372881384,45.59029269,147.08,147.02,45.59029269]
[1741372881698,45.59029269,147.09,147.02,45.59029269]
[1741372882000,0.03,147.12,147.06,45.59029269]
[1741372882187,0.03,147.12,147.08,45.59029269]
[1741372883095,0.03,147.12,147.07,53.15029269]
[1741372883407,0.03,147.12,147.09,45.59029269]
[1741372884602,45.62029269,147.12,147.07,7.56]
[1741372884789,45.59029269,147.1,147.04,45.59029269]
[1741372885100,45.62029269,147.12,147.06,45.59029269]
[1741372885410,0.03,147.12,147.06,45.59029269]
[1741372885609,45.59029269,147.11,147.0,45.59029269]
[1741372885905,45.59029269,147.11,147.05,45.59029269]
[1741372886081,45.59029269,147.1,147.01,7.56]
[1741372886488,45.59029269,147.1,147.04,45.59029269]
[1741372886681,47.62959269,147.11,147.05,45.59029269]
[1741372886987,45.62029269,147.12,147.06,45.59029269]
[1741372887216,47.65949269,147.12,147.06,45.59029269]
[1741372887397,45.59029269,147.11,147.05,45.59029269]
[1741372887715,47.65949269,147.12,147.05,45.59029269]
[1741372887902,45.59029269,147.1,147.03,45.59029269]
[1741372888212,45.59029269,147.08,147.02,45.59029269]
[1741372888507,45.59029269,147.08,147.02,53.13029269]
[1741372888904,2.0398,147.07,147.02,53.13029269]
[1741372889487,2.0398,147.07,147.02,7.54]
[1741372890200,2.0394,147.1,147.04,45.59029269]
[1741372890507,2.0394,147.1,147.02,14.3416]
[1741372890508,52.72819269,147.1,147.03,45.59029269]
[1741372891394,45.59029269,147.09,147.03,45.59029269]
[1741372891597,7.1379,147.1,147.02,7.54]
[1741372891598,45.59029269,147.06,147.02,7.54]
[1741372891802,45.59029269,147.08,147.02,7.54]
[1741372892103,2.0394,147.1,147.03,45.59029269]
[1741372892405,2.0394,147.1,147.05,45.59029269]
[1741372892983,0.03,147.12,147.08,45.59029269]
[1741372893190,0.03,147.12,147.1,45.59029269]
[1741372893389,0.03,147.12,147.08,7.54]
[1741372893390,0.03,147.12,147.11,45.59029269]
[1741372893609,0.03,147.12,147.09,45.59029269]
[1741372894196,0.03,147.12,147.1,45.59029269]
[1741372894403,0.03,147.12,147.11,45.59029269]
[1741372895805,0.03,147.12,147.1,6.798]
[1741372896127,0.03,147.12,147.11,45.59029269]
[1741372897032,0.0001,147.13,147.12,6.7971]
[1741372897210,0.0001,147.13,147.12,97.97768538]
[1741372898333,0.0001,147.13,147.12,364.38739269]
[1741372898529,0.0001,147.13,147.12,446.38739269]
[1741372898700,0.0001,147.13,147.12,491.97768538]
[1741372898899,0.03,147.16,147.12,508.97058538]
[1741372899100,0.03,147.16,147.15,45.59029269]
[1741372901307,0.03,147.16,147.15,52.38599269]
[1741372901907,0.03,147.16,147.15,53.40481716]
[1741372902089,0.03,147.16,147.15,365.40481716]